[Event "Grandiscacchi GM Festival 2022"]
[Site "Montebelluna"]
[Date "2022.05.19"]
[Round "8.2"]
[White "Siddharth, Jagadeesh"]
[Black "Jobava, Baadur"]
[Result "*"]
[ECO "A61"]
[WhiteElo "2393"]
[BlackElo "2600"]
[Annotator "TA"]
[PlyCount "65"]
[EventDate "2022.05.17"]
[EventType "swiss"]
[EventCountry "ITA"]
[SourceTitle "playchess.com"]
[Source "ChessBase"]
[SourceQuality "1"]
[TimeControl "40/3600+30:1800+30"]

{[%evp 13,65,39,20,35,27,7,27,13,31,34,54,50,57,38,54,32,26,28,68,25,47,50,37,3,13,29,46,0,-4,-53,-45,-60,0,0,0,-52,-79,-95,-44,-51,-11,-12,74,27,17,18,19,34,78,88,120,0,0,9]} 1. d4 {[%emt 0:00:22]} Nf6 {[%emt 0:06:12]} 2. c4 {[%emt 0:00:16]} e6 {[%emt 0:00:05]} 3. Nf3 {[%emt 0:00:10]} c5 {[%emt 0:00:07]} 4. d5 {[%emt 0:00:25]} exd5 {[%emt 0:00:07]} 5. cxd5 {[%emt 0:00:09]} d6 {[%emt 0:00:04]} 6. Nc3 {[%emt 0:00:18]} g6 {[%emt 0:00:05]} 7. Bf4 {[%emt 0:00:11]} Bg7 {[%emt 0:00:07] is now more promising than 7...a6.} 8. h3 {[%emt 0:00:31] A61: Modern Benoni: Nf3 without early e4.} O-O {[%emt 0:00:15][%cal Ob7b5]} 9. e3 {[%emt 0:00:21]} (9. e4 Re8 10. Nd2 Nxe4 11. Ncxe4 f5 $11) 9... Qe7 {[%emt 0:02:55]} 10. Be2 {[%emt 0:05:50] White has an edge.} Nbd7 {[%emt 0:00:19]} 11. O-O {[%emt 0:00:08]} a6 {[%emt 0:02:41]} 12. a4 $1 {[%emt 0:00:06] Against b5} Rb8 {[%emt 0:00:05][%cal Ba8b8,Bb8b6,Bb6b4][%mdl 32]} 13. Re1 {[%emt 0:03:32][%cal Oe3e4]} Ne8 {[%emt 0:03:13]} 14. Nd2 {[%emt 0:02:27]} Ne5 {[%emt 0:03:42]} 15. Bh2 {[%emt 0:03:28]} Nc7 {[%emt 0:00:30]} 16. a5 {[%emt 0:01:32]} (16. f4 $5 {[%cal Rf4e5]} Nd7 17. e4 $16) 16... b5 {[%emt 0:00:16]} 17. axb6 $1 {[%emt 0:01:18]} Rxb6 {[%emt 0:00:03]} 18. Qc2 {[%emt 0:01:05] [#]} Rb4 $146 {[%emt 0:00:54]} ({Predecessor:} 18... Nb5 19. Nxb5 axb5 20. b4 cxb4 21. Qb3 Bb7 22. Ra7 Qd8 23. e4 Qb8 24. Ra2 Rc8 25. Qxb4 {1-0 (90) Mekhitarian,K (2554)-Bharath,S (2435) Chess.com INT 2021}) 19. b3 {[%emt 0:06:28]} Nb5 {[%emt 0:03:10] [#] ...Nxc3 is the strong threat.} 20. Nxb5 {[%emt 0:01:32]} (20. Na2 $14 Rh4 21. Bxb5 axb5 22. Nc3) 20... axb5 $11 {[%emt 0:00:04]} 21. Rad1 {[%emt 0:01:29]} (21. Ra5 $11) 21... f5 $15 {[%emt 0:01:14]} 22. Bf1 {[%emt 0:01:29]} g5 {[%emt 0:00:56]} (22... Bb7 $15 23. e4 Qf7) 23. f4 $11 {[%emt 0:04:16]} Nf7 {[%emt 0:00:05]} 24. Kh1 {[%emt 0:03:12]} (24. Bd3 $11) 24... g4 $1 $15 {[%emt 0:01:15]} 25. hxg4 {[%emt 0:02:11] [#]} fxg4 {[%emt 0:00:09]} (25... Nh6 $1 $17 {[%cal Rh6g4]} 26. g5 Ng4) 26. e4 {[%emt 0:00:12][%cal Be3e4,Be4e5,Be5d6][%mdl 32]} h5 {[%emt 0:00:24] White should prevent ...h4.} 27. e5 $1 {[%emt 0:05:00]} h4 {[%emt 0:05:24]} (27... dxe5 $11 {remains equal.} 28. Qg6 Nh8 29. Qxh5 Bf5) 28. Qg6 {[%emt 0:06:07]} (28. e6 $16 {And now Qg6 would win.} g3 29. Bg1 (29. exf7+ Qxf7 30. Bg1 Qxf4 $11) 29... Rxf4 30. Be3 (30. exf7+ Qxf7 31. Qd3 Qh5 $19) (30. Bxb5 $2 h3 $19)) 28... Nh8 $11 {[%emt 0:13:13]} 29. Qxd6 {[%emt 0:20:55]} Qxd6 30. exd6 Nf7 {[%emt 0:27:56]} 31. Bg1 {[%emt 0:01:00]} Bd4 {[%emt 0:00:30]} 32. Bxd4 {[%emt 0:00:30]} ({Better is} 32. Ne4 $16 Bxg1 33. Kxg1) 32... Rxd4 {[%emt 0:00:30]} 33. Ne4 {Weighted Error Value: White=0.18 (very precise) /Black=0.22 (precise)} ({Much weaker is} 33. Bxb5 Nxd6 34. Bf1 Rxd5 $17) *

[Event "Grandiscacchi GM Festival 2022"]
[Site "Montebelluna"]
[Date "2022.05.19"]
[Round "8.3"]
[White "Rozen, Eytan"]
[Black "Martinovici, Ilia"]
[Result "1/2-1/2"]
[ECO "E16"]
[WhiteElo "2425"]
[BlackElo "2408"]
[Annotator "TA"]
[PlyCount "26"]
[EventDate "2022.05.17"]
[EventType "swiss"]
[EventCountry "ITA"]
[SourceTitle "playchess.com"]
[Source "ChessBase"]
[SourceQuality "1"]
[TimeControl "40/3600+30:1800+30"]

{[%evp 17,26,0,0,0,0,-5,13,-16,-13,-14,0]} 1. d4 {[%emt 0:00:10]} d5 {[%emt 0:00:10]} 2. c4 {[%emt 0:00:46]} e6 {[%emt 0:00:04]} 3. g3 {[%emt 0:00:24]} Nf6 {[%emt 0:00:10]} 4. Bg2 {[%emt 0:00:09]} Bb4+ {[%emt 0:00:06]} 5. Nd2 {[%emt 0:00:23]} O-O {[%emt 0:00:07]} 6. Ngf3 {[%emt 0:00:22]} b6 {[%emt 0:02:16]} 7. cxd5 {[%emt 0:00:53]} exd5 {[%emt 0:00:07]} 8. O-O {[%emt 0:00:13]} Bb7 {[%emt 0:00:13]} 9. Ne5 {[%emt 0:01:08]} Re8 $1 {[%emt 0:01:39] The position is equal. The main line 9...Re8 scores better than 9...Nbd7.} 10. a3 {[%emt 0:01:41] E16: Queen's Indian: 4 g3 Bb7 5 Bg2 Bb4+.} Bf8 {[%emt 0:02:22]} 11. b4 {[%emt 0:01:25]} Nbd7 {[%emt 0:01:10]} 12. Ndf3 {[%emt 0:00:39]} Ne4 {[%emt 0:01:16] [#]} 13. Bb2 $146 {[%emt 0:00:25]} ({Predecessor:} 13. Qb3 c6 14. Nxd7 Qxd7 15. Ne5 Qe6 16. a4 f6 17. Nd3 Kh8 18. Nf4 Qd7 19. Rb1 {½-½ (67) Kapnisis,S (2449)-Maiorov,N (2538) Rethymno 2013}) 13... f6 {[%emt 0:00:57] An uneventful encounter.  Weighted Error Value: White=0.10 (very precise) /Black=0.04 (flawless)} 1/2-1/2

[Event "Grandiscacchi GM Festival 2022"]
[Site "Montebelluna"]
[Date "2022.05.19"]
[Round "8.4"]
[White "Loiseau, Quentin"]
[Black "Ojas Kulkarni"]
[Result "0-1"]
[ECO "E60"]
[WhiteElo "2445"]
[BlackElo "2235"]
[Annotator "TA"]
[PlyCount "56"]
[EventDate "2022.05.17"]
[EventType "swiss"]
[EventCountry "ITA"]
[SourceTitle "playchess.com"]
[Source "ChessBase"]
[SourceQuality "1"]
[TimeControl "40/3600+30:1800+30"]

{[%evp 9,56,40,35,33,45,18,43,15,78,83,110,111,153,168,162,162,162,106,173,189,201,121,178,118,199,118,120,95,188,181,260,223,269,259,242,104,93,0,171,162,215,-806,-798,-1522,-1522,-1691,-1331,-5433,-1145]} 1. d4 {[%emt 0:02:30]} Nf6 {[%emt 0:00:09]} 2. c4 {[%emt 0:00:01]} g6 {[%emt 0:00:07]} 3. f3 {[%emt 0:00:05]} c5 {[%emt 0:00:07]} 4. d5 {[%emt 0:00:05]} e6 {[%emt 0:00:09]} 5. e4 {[%emt 0:00:05]} d6 {[%emt 0:00:07]} (5... Nxe4 $2 6. fxe4 Qh4+ 7. Ke2 $18) 6. Ne2 {[%emt 0:00:08] E60: King's Indian: Unusual lines and Fianchetto Variation without Nc3.} Bg7 {[%emt 0:00:08]} 7. Nec3 {[%emt 0:02:03] 7.Nbc3 is the modern continuation.} (7. Bg5 {is more complex.} O-O 8. Nec3 a6 9. Qc1) 7... O-O {[%emt 0:04:47]} 8. Be3 {[%emt 0:00:11] White is slightly better.} e5 {[%emt 0:00:27]} (8... a6 $11) 9. g4 $16 {[%emt 0:01:09] [#]} Ne8 $146 {[%emt 0:00:48]} ({Predecessor:} 9... h5 10. h3 Nbd7 11. Bd3 a6 12. a4 Nh7 13. Qd2 h4 14. Rg1 Bf6 15. g5 Bg7 {0-1 (51) Suvorov,L (2276)-Van Wely,L (2604) Maastricht 2019}) 10. h4 {[%emt 0:01:37]} f5 {[%emt 0:02:55]} 11. gxf5 {[%emt 0:02:37]} gxf5 {[%emt 0:00:03]} 12. exf5 {[%emt 0:00:37]} Bxf5 {[%emt 0:00:22]} 13. Nd2 {[%emt 0:04:54]} e4 {[%emt 0:19:33]} (13... Bf6 $16 {is a better defense.}) 14. fxe4 $18 {[%emt 0:03:47]} ({Much less strong is} 14. Ncxe4 Nd7 $16) 14... Bc8 {[%emt 0:02:57]} 15. Bg5 {[%emt 0:04:18]} Qc7 {[%emt 0:01:21]} (15... Qb6 $16 16. Qb3 Qxb3 17. axb3 h6) 16. Qc2 {[%emt 0:11:23]} (16. Be2 $18) 16... Nd7 {[%emt 0:01:03]} (16... h6 $16) 17. Bh3 {[%emt 0:07:07]} ({White should play} 17. Rg1 $18) 17... Ne5 $16 {[%emt 0:00:35]} 18. Be6+ {[%emt 0:02:06]} Kh8 {[%emt 0:00:06]} (18... Bxe6 $16 19. dxe6 Qc8) 19. O-O-O $1 $18 {[%emt 0:00:36]} a6 {[%emt 0:01:22]} (19... h6 $142 20. Kb1 a6) 20. Rdf1 $1 {[%emt 0:01:10]} Rxf1+ {[%emt 0:00:31]} 21. Rxf1 {[%emt 0:00:54]} ({Less strong is} 21. Nxf1 b5 $16) 21... b5 {[%emt 0:00:02] [#]} 22. cxb5 {[%emt 0:13:20]} (22. Nf3 $1 $18) 22... axb5 $16 {[%emt 0:00:17] White must now prevent ...b4.} 23. Nxb5 {[%emt 0:00:50]} (23. Nf3 $16) 23... Qa5 {[%emt 0:01:03] [#]} (23... Qb8 $1 $11 {and Black has nothing to worry.} 24. Nc3 Ba6) 24. a4 $1 $18 {[%emt 0:02:26] Strongly threatening Bxc8.} Ba6 {[%emt 0:00:18]} (24... Bxe6 $142 25. dxe6 Qxa4 26. Qxa4 Rxa4) 25. Qc3 $4 {[%emt 0:05:25][%mdl 8192]} (25. Nc4 $18 Nxc4 26. Qf2 (26. Qxc4 $2 Nc7 $19)) 25... Qxa4 $19 {[%emt 0:01:17] Black is clearly winning.} 26. Rf8+ {[%emt 0:03:28]} Bxf8 {[%emt 0:00:08]} 27. Nxd6 {[%emt 0:00:14]} Bxd6 {[%emt 0:01:11]} 28. Nf3 {[%emt 0:00:48]} Qc4 {[%emt 0:00:33] Weighted Error Value: White=0.92/Black=0.64} 0-1

[Event "Grandiscacchi GM Festival 2022"]
[Site "Montebelluna"]
[Date "2022.05.19"]
[Round "8.5"]
[White "Kalogridis, Antonios"]
[Black "Shahil Dey"]
[Result "0-1"]
[ECO "D66"]
[WhiteElo "2306"]
[BlackElo "2369"]
[Annotator "TA"]
[PlyCount "60"]
[EventDate "2022.05.17"]
[EventType "swiss"]
[EventCountry "ITA"]
[SourceTitle "playchess.com"]
[Source "ChessBase"]
[SourceQuality "1"]
[TimeControl "40/3600+30:1800+30"]

{[%evp 19,60,12,26,0,0,0,-8,-47,-50,-62,-41,-52,-55,-47,-50,-106,-115,-107,-100,-155,-146,-255,-240,-299,-298,-441,-421,-481,-423,-755,-722,-765,-735,-815,-783,-1409,-1305,-3441,-1784,-1228,-1222,-1221,-948]} 1. d4 {[%emt 0:00:02] Tsesarsky,I} d5 {[%emt 0:00:05]} 2. c4 {[%emt 0:00:03]} c6 {[%emt 0:00:07]} 3. Nf3 {[%emt 0:00:03]} Nf6 {[%emt 0:00:06]} 4. Nc3 {[%emt 0:00:03]} e6 {[%emt 0:00:08]} 5. Bg5 {[%emt 0:00:03]} h6 {[%emt 0:00:07]} 6. Bh4 {[%emt 0:00:08]} Be7 {[%emt 0:00:05]} 7. e3 {[%emt 0:00:06]} O-O {[%emt 0:00:06]} 8. Rc1 {[%emt 0:00:45]} Nbd7 {[%emt 0:00:25]} 9. Bd3 {[%emt 0:00:13]} dxc4 {[%emt 0:00:05]} 10. Bxc4 {[%emt 0:00:05]} a6 {[%emt 0:00:06][%cal Ba7a6,Ba6a5][%mdl 32]} 11. a3 {[%emt 0:03:57] D66: Queen's Gambit Declined: Classical: Main Line (7 Rc1 c6 8 Bd3).} b5 {[%emt 0:00:10]} 12. Ba2 {[%emt 0:00:06]} Bb7 {[%emt 0:02:24] [#]} 13. b4 $146 {[%emt 0:04:51] The position is equal.} ({Predecessor:} 13. O-O c5 14. Qe2 Ne4 15. Nxe4 Bxe4 16. Bg3 c4 17. Rfd1 Rc8 18. Ne1 Nb6 19. f3 Bb7 20. Bb1 Na4 21. Qc2 f5 22. Ba2 {½-½ (78) Malakhatko,V (2564)-Bischoff,K (2556) Istanbul 2000 EXT 2001 [Tsesarsky,I]}) 13... a5 {[%emt 0:00:28]} 14. Qb3 {[%emt 0:00:52]} Nd5 {[%emt 0:03:18]} 15. Bxe7 {[%emt 0:05:38]} Qxe7 {[%emt 0:01:02]} 16. Nxd5 {[%emt 0:00:19]} exd5 {[%emt 0:00:07]} 17. Rb1 {[%emt 0:01:38]} (17. Bb1 $15) 17... axb4 $17 {[%emt 0:01:20]} 18. axb4 {[%emt 0:00:03]} Ra4 {[%emt 0:01:36] Black is more active.} 19. Rb2 {[%emt 0:00:31] [#]} ({Better is} 19. Qc2) 19... Nb6 $1 {[%emt 0:05:47]} 20. Ne5 {[%emt 0:19:16]} (20. Bb1 $17) 20... Nc4 $19 {[%emt 0:08:00]} 21. Nxc4 {[%emt 0:00:09]} dxc4 {[%emt 0:00:04]} 22. Qc3 {[%emt 0:00:07]} (22. Qc2 $142) 22... Qg5 {[%emt 0:01:17] Black is clearly winning.} ({Wrong is} 22... c5 $2 23. bxc5 Qg5 24. f4 Qh4+ 25. g3 $19) 23. f4 {[%emt 0:04:09]} Qh4+ {[%emt 0:00:26]} 24. Ke2 {[%emt 0:03:44]} (24. Rf2 $142 c5 25. O-O cxb4 26. Qc2) 24... Qg4+ {[%emt 0:01:21]} 25. Kf1 {[%emt 0:00:39]} c5 {[%emt 0:08:45]} 26. bxc5 {[%emt 0:02:26]} b4 {[%emt 0:00:07][%cal Bb5b4,Bb4b3,Bb3b2][%mdl 32]} 27. Qc1 {[%emt 0:02:07]} c3 {[%emt 0:01:05]} 28. Rf2 {[%emt 0:00:12] [#]} Rxa2 $1 {[%emt 0:01:51][%mdl 512]} 29. Rxa2 {[%emt 0:00:08]} b3 {[%emt 0:00:03]} 30. Rf2 {[%emt 0:00:00]} b2 {[%emt 0:00:00] White did not feel at home in the position after the opening.  Weighted Error Value: White=0.98/Black=0.04 (flawless)} 0-1

[Event "Grandiscacchi GM Festival 2022"]
[Site "Montebelluna"]
[Date "2022.05.20"]
[Round "9.1"]
[White "Martinovici, Ilia"]
[Black "Pantsulaia, Levan"]
[Result "0-1"]
[ECO "E80"]
[WhiteElo "2408"]
[BlackElo "2587"]
[Annotator "TA"]
[PlyCount "94"]
[EventDate "2022.05.17"]
[EventType "swiss"]
[EventCountry "ITA"]
[SourceTitle "playchess.com"]
[Source "ChessBase"]
[SourceQuality "1"]
[TimeControl "40/3600+30:1800+30"]

{[%evp 10,94,59,27,29,16,12,19,34,21,25,22,50,42,74,45,48,31,53,56,67,20,19,38,67,10,12,21,27,11,19,22,8,12,30,0,0,0,0,0,15,0,27,-7,0,0,0,0,7,0,0,0,0,0,0,-16,0,-55,-65,-64,-59,-77,-54,-54,-27,-129,-128,-142,-141,-123,-122,-408,-416,-747,-742,-722,-722,-1084,-1051,-1093,-1029,-29962,-29965,-29960,-12308,-4532,-1012]} 1. d4 {[%emt 0:01:58]} g6 {[%emt 0:00:15]} 2. c4 {[%emt 0:00:24]} Bg7 {[%emt 0:00:07]} 3. e4 {[%emt 0:00:10]} c5 {[%emt 0:00:17]} 4. d5 {[%emt 0:00:08]} d6 {[%emt 0:00:52]} 5. Nc3 {[%emt 0:00:36]} Nf6 {[%emt 0:01:14]} 6. f3 {[%emt 0:00:11]} e6 {[%emt 0:00:32] E80: King's Indian: Sämisch: Lines without early ...0-0.} 7. Nge2 {[%emt 0:00:19]} exd5 {[%emt 0:00:09]} 8. cxd5 {[%emt 0:00:04]} ({Don't play} 8. Nxd5 Nxd5 9. cxd5 (9. exd5 Qh4+ 10. g3 Qxc4 $17) (9. Qxd5 Nc6 $15) 9... O-O $15) 8... h5 $5 {[%emt 0:01:10][%mdl 4] The position is equal. An interesting side line.} 9. Bg5 {[%emt 0:00:44]} O-O {[%emt 0:01:29]} 10. Qd2 {[%emt 0:00:51]} Qe8 {[%emt 0:01:27]} 11. Nc1 {[%emt 0:02:45]} Nh7 {[%emt 0:02:21] [#]} 12. Bf4 $146 {[%emt 0:03:42]} ({Predecessor:} 12. Be3 Bd7 13. Be2 b5 14. a4 b4 15. Nb5 Bxb5 16. Bxb5 Nd7 17. O-O a6 18. Bc6 {0-1 (55) Nakamura,H (2779)-Pantsulaia,L (2607) Doha 2016}) 12... Qe7 {[%emt 0:00:29]} 13. Bh6 {[%emt 0:02:16]} f5 {[%emt 0:01:54]} 14. Bxg7 {[%emt 0:00:09]} Kxg7 {[%emt 0:00:15]} 15. Nd3 {[%emt 0:05:12]} (15. N1e2 $14) 15... fxe4 $11 {[%emt 0:14:58]} 16. Nxe4 {[%emt 0:00:30]} Bf5 {[%emt 0:00:11]} 17. O-O-O {[%emt 0:05:21]} (17. Nf4 $1 $14) 17... Bxe4 {[%emt 0:02:35]} 18. Re1 {[%emt 0:01:39][%cal Bd1e1,Be1e4,Be4a4][%mdl 96] [#] Pin} Qg5 $1 {[%emt 0:05:01]} 19. Rxe4 {[%emt 0:00:10] aiming for Nf4.} Qxd2+ {[%emt 0:06:36]} 20. Kxd2 {[%emt 0:00:04]} Nd7 {[%emt 0:06:25]} 21. Nf4 {[%emt 0:03:33]} Kh6 {[%emt 0:00:22]} 22. h4 {[%emt 0:05:12] Prevents Ng5.} (22. Bd3 $5 {[%cal Rf4g6]}) 22... Ne5 $1 {[%emt 0:01:46] Inhibits g4.} 23. Ne6 {[%emt 0:03:08]} Rf5 {[%emt 0:05:56]} 24. Ra4 {[%emt 0:01:46]} a6 {[%emt 0:16:09]} 25. Be2 {[%emt 0:01:07] [#] Black must now prevent g4.} Nf8 {[%emt 0:00:00]} 26. Nf4 {[%emt 0:05:25]} Nfd7 {[%emt 0:00:00]} 27. g4 {[%emt 0:00:43]} Rf7 {[%emt 0:00:00][%cal Oc5c4]} 28. Re4 {[%emt 0:02:39] Against c4} Re8 {[%emt 0:00:00][%cal Oe5f3] Hoping for ...Nxf3+!} 29. Rf1 {[%emt 0:07:46]} hxg4 {[%emt 0:00:28]} 30. fxg4 {[%emt 0:00:00]} Ref8 {[%emt 0:00:00]} 31. g5+ {[%emt 0:00:00]} Kh7 {[%emt 0:00:00]} 32. Ke3 {[%emt 0:00:00]} Kg8 {[%emt 0:00:00][%cal Oc5c4]} 33. h5 {[%emt 0:00:00]} ({White should play} 33. Rd1 $11) 33... gxh5 $15 {[%emt 0:00:00]} 34. Rg1 {[%emt 0:00:00] Against Ng4+} Nb6 {[%emt 0:00:00][%cal Of7f4] Threatens to win with ...Rxf4!} 35. Nxh5 {[%emt 0:00:00]} Nxd5+ {[%emt 0:00:00] Pair of Knights!} 36. Kd2 {[%emt 0:00:00]} Rf2 {[%emt 0:00:00] ...Nf3+ is the strong threat.} 37. Ke1 {[%emt 0:00:00]} (37. Kc1 $1 $11) 37... Rh2 $36 {[%emt 0:00:00][%mdl 2048] Keeping White busy. Black is much more active.} 38. Nf6+ {[%emt 0:02:51]} Nxf6 {[%emt 0:00:00]} 39. gxf6+ {[%emt 0:00:07]} Kf7 {[%emt 0:00:00] And now ...Re8 would win.} 40. Rg7+ $2 {[%emt 0:00:10][%mdl 8192] White does not recover from this.} (40. Rf4 $17) 40... Kxf6 $19 {[%emt 0:00:00]} 41. Rxb7 {[%emt 0:30:05]} (41. Rg3 $142 Ke6 42. Bg4+ Kd5 43. Re2) 41... Kf5 {[%emt 0:23:46]} 42. Re3 {[%emt 0:00:05]} Rg8 {[%emt 0:00:21]} 43. Kf1 {[%emt 0:06:52] Prevents Rg1+.} Kf4 {[%emt 0:00:48]} 44. Ra3 {[%emt 0:02:56]} Rgg2 {[%emt 0:00:29]} 45. Ra4+ {[%emt 0:00:46]} c4 {[%emt 0:02:41]} 46. Rxc4+ {[%emt 0:00:56]} Nxc4 {[%emt 0:00:07]} 47. Bxc4 {[%emt 0:00:16]} Rxb2 {[%emt 0:12:50] Weighted Error Value: White=0.61/Black=0.05 (flawless)} 0-1

[Event "Grandiscacchi GM Festival 2022"]
[Site "Montebelluna"]
[Date "2022.05.20"]
[Round "9.3"]
[White "Jobava, Baadur"]
[Black "Fishchuk, Vladyslav"]
[Result "1-0"]
[ECO "B22"]
[WhiteElo "2600"]
[BlackElo "2102"]
[Annotator "TA"]
[PlyCount "53"]
[EventDate "2022.05.17"]
[EventType "swiss"]
[EventCountry "ITA"]
[SourceTitle "playchess.com"]
[Source "ChessBase"]
[SourceQuality "1"]
[TimeControl "40/3600+30:1800+30"]

{[%evp 9,53,-24,-26,-23,-14,-30,22,8,20,6,0,8,17,19,35,28,26,30,20,17,48,14,22,21,21,15,36,36,107,102,231,214,222,229,241,241,208,227,970,966,1997,1953,1841,1715,1281,737]} 1. e4 {[%emt 0:09:22][%cal Be2e4,Be4e5][%mdl 32]} c5 {[%emt 0:00:10]} 2. c3 {[%emt 0:00:29]} Nf6 {[%emt 0:00:05]} 3. e5 {[%emt 0:00:06]} Nd5 {[%emt 0:00:04]} 4. Nf3 {[%emt 0:00:10]} Nc6 {[%emt 0:00:06]} 5. g3 {[%emt 0:00:14]} d6 {[%emt 0:00:41]} 6. exd6 {[%emt 0:00:07] B22: Sicilian: 2 c3.} Qxd6 {[%emt 0:00:43]} 7. Bg2 {[%emt 0:00:06]} e6 {[%emt 0:00:43]} (7... Bf5 $142 8. Qe2 g6) 8. O-O $11 {[%emt 0:01:24] The position is equal.} Be7 {[%emt 0:00:08]} 9. Na3 {[%emt 0:01:18]} O-O {[%emt 0:00:44]} 10. d4 {[%emt 0:00:27]} cxd4 {[%emt 0:01:08]} 11. Nb5 {[%emt 0:52:17]} Qd8 {[%emt 0:00:23]} 12. Nbxd4 {[%emt 0:00:00]} Nxd4 {[%emt 0:03:38]} 13. Qxd4 {[%emt 0:00:00]} Qc7 {[%emt 0:02:07] [#]} 14. Rd1 $146 {[%emt 0:00:00]} ({Predecessor:} 14. Qe5 Bd6 15. Qh5 Bd7 16. Ng5 Nf6 17. Qe2 h6 18. Ne4 Nxe4 19. Qxe4 Bc6 20. Qc4 {½-½ (63) Acs,G (2175)-Deak,S (2318) Hungary 2014}) 14... Rd8 {[%emt 0:05:41][%cal Od5c3] Hoping for ...Nxc3!} 15. Qe5 {[%emt 0:00:00][%cal Od1d5] And now Rxd5! would win.} Bd6 {[%emt 0:01:30]} 16. Qe2 {[%emt 0:00:00]} Bd7 {[%emt 0:04:36]} 17. Bg5 {[%emt 0:00:00]} Nf6 {[%emt 0:10:30]} 18. Nd4 {[%emt 0:00:00]} a6 {[%emt 0:01:03]} (18... Be7 $14) 19. Qf3 {[%emt 0:00:00] White is more active.} e5 {[%emt 0:03:03] A mistake that costs the game.} (19... Be7 $16) 20. Bxf6 $18 {[%emt 0:00:00]} ({Worse is} 20. Qxb7 exd4 21. Qxc7 Bxc7 $11) 20... gxf6 {[%emt 0:00:07] [#]} 21. Nf5 {[%emt 0:00:00] Strongly threatening Qg4+.} ({Inferior is} 21. Qxb7 exd4 22. Qxc7 Bxc7 $11) 21... Bf8 {[%emt 0:00:25]} 22. Qg4+ {[%emt 0:00:00]} Kh8 {[%emt 0:00:09]} 23. Qh4 {[%emt 0:00:00]} Qb6 {[%emt 0:01:06] [#]} (23... Bg7) 24. Rd6 $3 {[%emt 0:00:00][%mdl 512] White is clearly winning.} Qxb2 {[%emt 0:00:35]} (24... Qxd6 25. Nxd6) 25. Qxf6+ {[%emt 0:00:00]} Kg8 {[%emt 0:00:09]} 26. Qg5+ {[%emt 0:00:00]} Kh8 {[%emt 0:00:09]} 27. Rad1 {[%emt 0:00:00] Weighted Error Value: White=0.03 (flawless) /Black=0.28 (precise)} 1-0

[Event "Grandiscacchi GM Festival 2022"]
[Site "Montebelluna"]
[Date "2022.05.20"]
[Round "9.4"]
[White "Kalogridis, Antonios"]
[Black "Rozen, Eytan"]
[Result "0-1"]
[ECO "C01"]
[WhiteElo "2306"]
[BlackElo "2425"]
[Annotator "TA"]
[PlyCount "33"]
[EventDate "2022.05.17"]
[EventType "swiss"]
[EventCountry "ITA"]
[SourceTitle "playchess.com"]
[Source "ChessBase"]
[SourceQuality "1"]
[TimeControl "40/3600+30:1800+30"]

{[%evp 9,33,-31,-14,-65,-75,-89,-85,-95,-106,-136,-142,-166,-166,-144,-154,-282,-216,-537,-497,-1122,-491,-727,-565,-562,-555,-520]} 1. d4 {[%emt 0:00:01]} e6 {[%emt 0:00:22]} 2. c4 {[%emt 0:00:08]} b6 {[%emt 0:00:07]} 3. e4 {[%emt 0:00:09]} Bb4+ {[%emt 0:00:05]} 4. Nd2 {[%emt 0:01:41]} Bb7 {[%emt 0:01:16]} 5. Bd3 {[%emt 0:01:14]} f5 $1 {[%emt 0:05:34]} 6. Qh5+ {[%emt 0:18:07] C01: French: Exchange Variation.} ({White should play} 6. f3 $11) 6... g6 $15 {[%emt 0:05:09]} 7. Qe2 {[%emt 0:00:08]} Nf6 {[%emt 0:00:53][%cal Bg8f6,Bf6g4,Bg4f2][%mdl 32] [#] Threatens to win with ...fxe4.} 8. f3 {[%emt 0:00:11] Black is better.} Nc6 {[%emt 0:03:25]} 9. Qe3 {[%emt 0:00:16]} fxe4 {[%emt 0:02:52] Black is more active.} 10. fxe4 {[%emt 0:00:46] [#]} O-O $146 {[%emt 0:04:26] White must now prevent ...Ng4.} ({Predecessor:} 10... e5 11. d5 Nd4 12. Ne2 O-O 13. Nxd4 exd4 14. Qe2 Nh5 15. g3 c6 16. Kd1 b5 17. dxc6 dxc6 18. cxb5 cxb5 19. Bxb5 {0-1 (34) Horvath,J (2134)-Szelenyi,N (2394) Hungary 2009}) 11. Ngf3 {[%emt 0:02:03]} Ng4 {[%emt 0:02:07]} 12. Qe2 {[%emt 0:01:02]} (12. Qg1 $17 {was forced.}) 12... Qf6 {[%emt 0:02:07]} 13. e5 $2 {[%emt 0:05:57]} (13. a3 Nxd4 14. Nxd4 Bxd2+ 15. Kxd2 Qxd4 16. Qxg4) 13... Qf4 $19 {[%emt 0:00:50] Black is clearly winning.} 14. g3 {[%emt 0:01:18]} (14. Be4 $142 Nxd4 15. Nxd4 Bxe4 16. Rf1 Qxe5 17. N4f3 Bxf3 18. Qxe5 Nxe5 19. gxf3) 14... Bxd2+ {[%emt 0:00:43]} (14... Qxf3 $142 15. Rf1 Qxf1+ 16. Qxf1 Rxf1+ 17. Bxf1 Nxd4) 15. Nxd2 {[%emt 0:00:38]} (15. Bxd2 $142 Qxf3 16. Qxf3 Rxf3 17. Be4) 15... Qf2+ {[%emt 0:02:15]} 16. Qxf2 {[%emt 0:00:22]} Nxf2 {[%emt 0:00:03]} 17. Be4 {[%emt 0:00:33] White did not feel at home in the position after the opening.  Weighted Error Value: White=1.28/Black=0.78} 0-1